[Event "Titled Tuesday Blitz May 2 Late 2023"]
[White "Mihajlov, Sebastian"]
[Black "Hajiyev, Kanan"]
[WhiteFideId "1512110"]
[BlackFideId "13404148"]
[WhiteElo "2478"]
[BlackElo "2103"]
[Result "0-1"]
[Round "09"]
[TimeControl "180+2"]
[Date "2023.05.02"]
[WhiteClock "0:00:02"]
[BlackClock "0:00:17"]

1. d4 {[%clk 0:03:00]}  d5 {[%clk 0:02:59]} 2. c4 {[%clk 0:03:01]}  c6 {[%clk 0:03:00]} 3. Nc3 {[%clk 0:03:01]}  Nf6 {[%clk 0:03:00]} 4. Nf3 {[%clk 0:03:02]}  g6 {[%clk 0:03:01]} 5. cxd5 {[%clk 0:03:01]}  cxd5 {[%clk 0:03:02]} 6. Qb3 {[%clk 0:03:01]}  Bg7 {[%clk 0:02:59]} 7. Bf4 {[%clk 0:03:02]}  O-O {[%clk 0:02:59]} 8. e3 {[%clk 0:03:02]}  Nc6 {[%clk 0:02:57]} 9. Be2 {[%clk 0:02:59]}  Na5 {[%clk 0:02:48]} 10. Qd1 {[%clk 0:02:55]}  Nc4 {[%clk 0:02:32]} 11. b3 {[%clk 0:02:51]}  Qa5 {[%clk 0:02:29]} 12. Rc1 {[%clk 0:02:50]}  Nd6 {[%clk 0:02:01]} 13. O-O {[%clk 0:02:50]}  Nde4 {[%clk 0:01:53]} 14. Qe1 {[%clk 0:02:49]}  Nxc3 {[%clk 0:01:49]} 15. Qxc3 {[%clk 0:02:48]}  Qxc3 {[%clk 0:01:49]} 16. Rxc3 {[%clk 0:02:48]}  Ne8 {[%clk 0:01:36]} 17. Rfc1 {[%clk 0:02:44]}  Bd7 {[%clk 0:01:36]} 18. Ne5 {[%clk 0:02:43]}  Bxe5 {[%clk 0:01:35]} 19. dxe5 {[%clk 0:02:43]}  Bc6 {[%clk 0:01:29]} 20. h4 {[%clk 0:02:13]}  h5 {[%clk 0:01:26]} 21. Bg5 {[%clk 0:01:55]}  f6 {[%clk 0:01:26]} 22. Bf4 {[%clk 0:01:54]}  Kf7 {[%clk 0:01:16]} 23. g4 {[%clk 0:01:46]}  hxg4 {[%clk 0:01:12]} 24. Bxg4 {[%clk 0:01:47]}  f5 {[%clk 0:01:12]} 25. Bf3 {[%clk 0:01:43]}  Rh8 {[%clk 0:01:12]} 26. Bg3 {[%clk 0:01:43]}  Ng7 {[%clk 0:01:09]} 27. Rxc6 {[%clk 0:01:26]}  bxc6 {[%clk 0:01:08]} 28. Rxc6 {[%clk 0:01:27]}  e6 {[%clk 0:01:03]} 29. Rc7+ {[%clk 0:01:24]}  Kg8 {[%clk 0:01:02]} 30. b4 {[%clk 0:01:11]}  Kh7 {[%clk 0:00:55]} 31. Bf4 {[%clk 0:01:03]}  Rhc8 {[%clk 0:00:54]} 32. Rd7 {[%clk 0:00:59]}  Rd8 {[%clk 0:00:42]} 33. Rb7 {[%clk 0:00:55]}  Rdb8 {[%clk 0:00:41]} 34. Rd7 {[%clk 0:00:53]}  Rxb4 {[%clk 0:00:41]} 35. Bg5 {[%clk 0:00:54]}  Kg8 {[%clk 0:00:32]} 36. Bf6 {[%clk 0:00:52]}  Ne8 {[%clk 0:00:29]} 37. Be7 {[%clk 0:00:38]}  Rb1+ {[%clk 0:00:26]} 38. Kg2 {[%clk 0:00:39]}  Rab8 {[%clk 0:00:21]} 39. Rxa7 {[%clk 0:00:28]}  R1b7 {[%clk 0:00:21]} 40. Rxb7 {[%clk 0:00:27]}  Rxb7 {[%clk 0:00:22]} 41. Bc5 {[%clk 0:00:28]}  Rb5 {[%clk 0:00:22]} 42. Be7 {[%clk 0:00:20]}  Kf7 {[%clk 0:00:22]} 43. Bd8 {[%clk 0:00:19]}  Rb8 {[%clk 0:00:19]} 44. Bg5 {[%clk 0:00:19]}  Ra8 {[%clk 0:00:19]} 45. h5 {[%clk 0:00:19]}  Rxa2 {[%clk 0:00:14]} 46. Kg3 {[%clk 0:00:19]}  Kg7 {[%clk 0:00:09]} 47. Bd1 {[%clk 0:00:14]}  Ra3 {[%clk 0:00:08]} 48. Kh4 {[%clk 0:00:11]}  Ra1 {[%clk 0:00:07]} 49. Bf3 {[%clk 0:00:10]}  Rf1 {[%clk 0:00:06]} 50. Kg3 {[%clk 0:00:07]}  Rg1+ {[%clk 0:00:06]} 51. Kf4 {[%clk 0:00:06]}  Nc7 {[%clk 0:00:03]} 52. Bf6+ {[%clk 0:00:07]}  Kh6 {[%clk 0:00:03]} 53. hxg6 {[%clk 0:00:07]}  Kxg6 {[%clk 0:00:03]} 54. Be2 {[%clk 0:00:05]}  Ne8 {[%clk 0:00:03]} 55. Bh4 {[%clk 0:00:04]}  Ng7 {[%clk 0:00:03]} 56. Kf3 {[%clk 0:00:01]}  Nh5 {[%clk 0:00:04]} 57. Bb5 {[%clk 0:00:02]}  Rg4 {[%clk 0:00:04]} 58. Be8+ {[%clk 0:00:02]}  Kh6 {[%clk 0:00:04]} 59. Be7 {[%clk 0:00:02]}  Ng7 {[%clk 0:00:04]} 60. Bd7 {[%clk 0:00:02]}  Re4 {[%clk 0:00:04]} 61. Bf6 {[%clk 0:00:03]}  Kg6 {[%clk 0:00:04]} 62. Bc6 {[%clk 0:00:03]}  Nh5 {[%clk 0:00:03]} 63. Be8+ {[%clk 0:00:03]}  Kh6 {[%clk 0:00:03]} 64. Bf7 {[%clk 0:00:04]}  Ng7 {[%clk 0:00:03]} 65. Bxg7+ {[%clk 0:00:03]}  Kxg7 {[%clk 0:00:04]} 66. Bxe6 {[%clk 0:00:04]}  Rxe5 {[%clk 0:00:05]} 67. Bd7 {[%clk 0:00:05]}  Kf6 {[%clk 0:00:06]} 68. Bc6 {[%clk 0:00:05]}  Ke6 {[%clk 0:00:05]} 69. Bb5 {[%clk 0:00:05]}  Re4 {[%clk 0:00:06]} 70. Bd3 {[%clk 0:00:05]}  Rb4 {[%clk 0:00:06]} 71. Bc2 {[%clk 0:00:05]}  Ke5 {[%clk 0:00:07]} 72. Bd3 {[%clk 0:00:05]}  Rb2 {[%clk 0:00:08]} 73. Ba6 {[%clk 0:00:05]}  Rd2 {[%clk 0:00:08]} 74. Bc8 {[%clk 0:00:05]}  Rb2 {[%clk 0:00:07]} 75. Bd7 {[%clk 0:00:06]}  Rb6 {[%clk 0:00:08]} 76. Be8 {[%clk 0:00:06]}  Rd6 {[%clk 0:00:09]} 77. Bb5 {[%clk 0:00:05]}  Rf6 {[%clk 0:00:09]} 78. Bd3 {[%clk 0:00:05]}  Rh6 {[%clk 0:00:10]} 79. Ke2 {[%clk 0:00:04]}  Rh4 {[%clk 0:00:10]} 80. f4+ {[%clk 0:00:04]}  Ke6 {[%clk 0:00:10]} 81. Kf3 {[%clk 0:00:05]}  Rh3+ {[%clk 0:00:10]} 82. Kf2 {[%clk 0:00:06]}  Rh2+ {[%clk 0:00:11]} 83. Kf3 {[%clk 0:00:06]}  Rb2 {[%clk 0:00:12]} 84. Ba6 {[%clk 0:00:05]}  Ra2 {[%clk 0:00:12]} 85. Bc8+ {[%clk 0:00:05]}  Kf6 {[%clk 0:00:12]} 86. Bb7 {[%clk 0:00:06]}  Ra5 {[%clk 0:00:11]} 87. Bc6 {[%clk 0:00:06]}  Rc5 {[%clk 0:00:12]} 88. Bd7 {[%clk 0:00:06]}  Rc3 {[%clk 0:00:12]} 89. Ke2 {[%clk 0:00:06]}  Rc7 {[%clk 0:00:12]} 90. Ba4 {[%clk 0:00:06]}  Ke6 {[%clk 0:00:12]} 91. Kf3 {[%clk 0:00:06]}  Ra7 {[%clk 0:00:12]} 92. Bb5 {[%clk 0:00:05]}  Ra3 {[%clk 0:00:12]} 93. Ke2 {[%clk 0:00:05]}  Rb3 {[%clk 0:00:13]} 94. Ba6 {[%clk 0:00:05]}  Rb2+ {[%clk 0:00:13]} 95. Kf3 {[%clk 0:00:05]}  Rd2 {[%clk 0:00:13]} 96. Bc8+ {[%clk 0:00:05]}  Kf6 {[%clk 0:00:14]} 97. Ba6 {[%clk 0:00:06]}  d4 {[%clk 0:00:14]} 98. exd4 {[%clk 0:00:06]}  Rxd4 {[%clk 0:00:15]} 99. Ke3 {[%clk 0:00:04]}  Rb4 {[%clk 0:00:15]} 100. Bd3 {[%clk 0:00:03]}  Rb3 {[%clk 0:00:15]} 101. Ke2 {[%clk 0:00:03]}  Ra3 {[%clk 0:00:16]} 102. Ke3 {[%clk 0:00:03]}  Ke6 {[%clk 0:00:17]} 103. Ke2 {[%clk 0:00:03]}  Kd6 {[%clk 0:00:17]} 104. Ke3 {[%clk 0:00:03]}  Kd5 {[%clk 0:00:17]} 105. Ke2 {[%clk 0:00:04]}  Ra2+ {[%clk 0:00:17]} 106. Ke3 {[%clk 0:00:04]}  Ra3 {[%clk 0:00:18]} 107. Ke2 {[%clk 0:00:05]}  Ke6 {[%clk 0:00:17]} 108. Ke3 {[%clk 0:00:05]}  Ra4 {[%clk 0:00:17]} 109. Kf3 {[%clk 0:00:03]}  Rb4 {[%clk 0:00:17]} 110. Ke3 {[%clk 0:00:03]}  Kf6 {[%clk 0:00:18]} 111. Kf3 {[%clk 0:00:03]}  Kg6 {[%clk 0:00:19]} 112. Bc2 {[%clk 0:00:03]}  Rc4 {[%clk 0:00:18]} 113. Bd3 {[%clk 0:00:02]}  Rc3 {[%clk 0:00:19]} 114. Ke3 {[%clk 0:00:02]}  Rb3 {[%clk 0:00:19]} 115. Kd4 {[%clk 0:00:03]}  Ra3 {[%clk 0:00:18]} 116. Bc4 {[%clk 0:00:03]}  Kh6 {[%clk 0:00:18]} 117. Be6 {[%clk 0:00:02]}  Kg6 {[%clk 0:00:17]} 118. Bd5 {[%clk 0:00:02]}  Kh5 {[%clk 0:00:17]} 119. Ke5 {[%clk 0:00:03]}  Kg4 {[%clk 0:00:16]} 120. Be6 {[%clk 0:00:02]}  Re3+ {[%clk 0:00:17]} 0-1


[Site "https://www.chess.com"]

[Event "Titled Tuesday Blitz May 2 Late 2023"]
[White "Bayo Milagro, Alvaro"]
[Black "Simonian, Hrair"]
[WhiteFideId "22275240"]
[BlackFideId "13302337"]
[WhiteElo "2270"]
[BlackElo "2447"]
[Result "1-0"]
[Round "09"]
[TimeControl "180+2"]
[Date "2023.05.02"]
[WhiteClock "0:00:22"]
[BlackClock "0:00:05"]

1. d4 {[%clk 0:03:00]}  Nf6 {[%clk 0:02:59]} 2. Nf3 {[%clk 0:03:00]}  b6 {[%clk 0:02:59]} 3. c4 {[%clk 0:02:58]}  Bb7 {[%clk 0:03:00]} 4. Nc3 {[%clk 0:02:58]}  e6 {[%clk 0:03:00]} 5. a3 {[%clk 0:02:57]}  d5 {[%clk 0:03:00]} 6. cxd5 {[%clk 0:02:57]}  Nxd5 {[%clk 0:03:01]} 7. Qc2 {[%clk 0:02:56]}  Be7 {[%clk 0:03:01]} 8. Bd2 {[%clk 0:02:56]}  O-O {[%clk 0:03:00]} 9. e4 {[%clk 0:02:57]}  Nxc3 {[%clk 0:02:59]} 10. Bxc3 {[%clk 0:02:58]}  Nd7 {[%clk 0:02:59]} 11. O-O-O {[%clk 0:02:57]}  Qc8 {[%clk 0:02:52]} 12. h4 {[%clk 0:02:56]}  Ba6 {[%clk 0:02:29]} 13. h5 {[%clk 0:02:49]}  Bxf1 {[%clk 0:02:17]} 14. Rhxf1 {[%clk 0:02:50]}  Bf6 {[%clk 0:02:16]} 15. e5 {[%clk 0:02:48]}  Be7 {[%clk 0:02:16]} 16. Kb1 {[%clk 0:02:44]}  b5 {[%clk 0:02:14]} 17. h6 {[%clk 0:02:38]}  g6 {[%clk 0:02:14]} 18. Bd2 {[%clk 0:02:38]}  Nb6 {[%clk 0:02:08]} 19. Bg5 {[%clk 0:02:35]}  Qd8 {[%clk 0:02:06]} 20. Bxe7 {[%clk 0:02:34]}  Qxe7 {[%clk 0:02:07]} 21. Nd2 {[%clk 0:02:25]}  Nd5 {[%clk 0:02:06]} 22. Ne4 {[%clk 0:02:23]}  a5 {[%clk 0:02:06]} 23. Qc5 {[%clk 0:02:15]}  Qxc5 {[%clk 0:02:02]} 24. Nxc5 {[%clk 0:02:16]}  a4 {[%clk 0:02:02]} 25. Rc1 {[%clk 0:02:06]}  b4 {[%clk 0:01:58]} 26. axb4 {[%clk 0:02:06]}  Rfb8 {[%clk 0:01:57]} 27. Rc4 {[%clk 0:01:49]}  Nxb4 {[%clk 0:01:56]} 28. Nd7 {[%clk 0:01:40]}  Rb7 {[%clk 0:01:52]} 29. Rfc1 {[%clk 0:01:36]}  Nd5 {[%clk 0:01:51]} 30. Nf6+ {[%clk 0:01:33]}  Nxf6 {[%clk 0:01:49]} 31. exf6 {[%clk 0:01:34]}  a3 {[%clk 0:01:39]} 32. Rxc7 {[%clk 0:01:25]}  Rxb2+ {[%clk 0:01:34]} 33. Ka1 {[%clk 0:01:25]}  Rbb8 {[%clk 0:01:33]} 34. Re7 {[%clk 0:01:07]}  Rf8 {[%clk 0:01:33]} 35. Rec7 {[%clk 0:01:00]}  Rad8 {[%clk 0:01:32]} 36. R1c4 {[%clk 0:01:00]}  Rd5 {[%clk 0:01:31]} 37. Rc8 {[%clk 0:00:57]}  Rdd8 {[%clk 0:01:19]} 38. R8c7 {[%clk 0:00:58]}  Ra8 {[%clk 0:01:15]} 39. Ka2 {[%clk 0:00:56]}  Rfb8 {[%clk 0:00:48]} 40. g4 {[%clk 0:00:55]}  Re8 {[%clk 0:00:35]} 41. f4 {[%clk 0:00:54]}  g5 {[%clk 0:00:34]} 42. fxg5 {[%clk 0:00:53]}  Reb8 {[%clk 0:00:19]} 43. Rc2 {[%clk 0:00:40]}  Rd8 {[%clk 0:00:18]} 44. R2c4 {[%clk 0:00:38]}  Rdb8 {[%clk 0:00:18]} 45. Rd7 {[%clk 0:00:37]}  Rb2+ {[%clk 0:00:17]} 46. Ka1 {[%clk 0:00:38]}  Rg2 {[%clk 0:00:13]} 47. Rdc7 {[%clk 0:00:22]}  Rf8 {[%clk 0:00:11]} 48. Rc8 {[%clk 0:00:21]}  Rg1+ {[%clk 0:00:11]} 49. Ka2 {[%clk 0:00:21]}  Rg2+ {[%clk 0:00:06]} 50. Kxa3 {[%clk 0:00:21]}  Rg3+ {[%clk 0:00:06]} 51. Ka4 {[%clk 0:00:21]}  Rg1 {[%clk 0:00:04]} 52. Rxf8+ {[%clk 0:00:21]}  Kxf8 {[%clk 0:00:05]} 53. Rc8# {[%clk 0:00:22]} 1-0


[Site "https://www.chess.com"]

[Event "Titled Tuesday Blitz May 2 Late 2023"]
[White "Gutkin, Ilya"]
[Black "Nasir, Zehn"]
[WhiteFideId "16203470"]
[BlackFideId "2613239"]
[WhiteElo "2265"]
[BlackElo "1993"]
[Result "0-1"]
[Round "09"]
[TimeControl "180+2"]
[Date "2023.05.02"]
[WhiteClock "0:00:03"]
[BlackClock "0:00:16"]

1. Nf3 {[%clk 0:03:00]}  d5 {[%clk 0:02:59]} 2. g3 {[%clk 0:03:00]}  f5 {[%clk 0:02:59]} 3. Bg2 {[%clk 0:02:59]}  Nf6 {[%clk 0:03:00]} 4. O-O {[%clk 0:02:58]}  e6 {[%clk 0:02:59]} 5. c4 {[%clk 0:02:58]}  c6 {[%clk 0:02:59]} 6. d3 {[%clk 0:02:57]}  Be7 {[%clk 0:02:55]} 7. Qc2 {[%clk 0:02:56]}  O-O {[%clk 0:02:50]} 8. Bf4 {[%clk 0:02:55]}  Bd7 {[%clk 0:02:43]} 9. Nc3 {[%clk 0:02:53]}  Be8 {[%clk 0:02:43]} 10. Rad1 {[%clk 0:02:49]}  Bh5 {[%clk 0:02:38]} 11. Rfe1 {[%clk 0:02:46]}  d4 {[%clk 0:02:15]} 12. Nb1 {[%clk 0:02:41]}  Nbd7 {[%clk 0:02:14]} 13. Nxd4 {[%clk 0:02:36]}  Bf7 {[%clk 0:01:38]} 14. Nf3 {[%clk 0:02:33]}  Qb6 {[%clk 0:01:32]} 15. Qb3 {[%clk 0:02:19]}  Bb4 {[%clk 0:01:29]} 16. Bd2 {[%clk 0:02:15]}  a5 {[%clk 0:01:26]} 17. a3 {[%clk 0:02:11]}  Nc5 {[%clk 0:01:25]} 18. Qc2 {[%clk 0:02:08]}  Bxd2 {[%clk 0:01:25]} 19. Nbxd2 {[%clk 0:02:07]}  a4 {[%clk 0:01:25]} 20. Ne5 {[%clk 0:01:59]}  Rad8 {[%clk 0:01:20]} 21. Ndf3 {[%clk 0:01:55]}  Bh5 {[%clk 0:01:19]} 22. Qc3 {[%clk 0:01:38]}  Nb3 {[%clk 0:01:15]} 23. Qb4 {[%clk 0:01:33]}  Qxb4 {[%clk 0:01:10]} 24. axb4 {[%clk 0:01:33]}  Bxf3 {[%clk 0:01:10]} 25. Bxf3 {[%clk 0:01:31]}  Nd4 {[%clk 0:01:10]} 26. Rc1 {[%clk 0:01:14]}  Nd7 {[%clk 0:01:08]} 27. Nxd7 {[%clk 0:01:12]}  Rxd7 {[%clk 0:01:07]} 28. Bg2 {[%clk 0:01:06]}  Rfd8 {[%clk 0:01:07]} 29. Kf1 {[%clk 0:00:57]}  Kf8 {[%clk 0:01:00]} 30. Rc3 {[%clk 0:00:54]}  e5 {[%clk 0:00:57]} 31. Ra1 {[%clk 0:00:51]}  Ra8 {[%clk 0:00:54]} 32. Rca3 {[%clk 0:00:44]}  Nc2 {[%clk 0:00:41]} 33. Rxa4 {[%clk 0:00:44]}  Rxa4 {[%clk 0:00:37]} 34. Rxa4 {[%clk 0:00:45]}  e4 {[%clk 0:00:37]} 35. Ra7 {[%clk 0:00:29]}  exd3 {[%clk 0:00:32]} 36. exd3 {[%clk 0:00:30]}  Nxb4 {[%clk 0:00:32]} 37. Ke2 {[%clk 0:00:23]}  Nxd3 {[%clk 0:00:31]} 38. b3 {[%clk 0:00:07]}  Nc1+ {[%clk 0:00:29]} 39. Ke3 {[%clk 0:00:06]}  Nxb3 {[%clk 0:00:29]} 40. Kf4 {[%clk 0:00:05]}  Nd4 {[%clk 0:00:28]} 41. h4 {[%clk 0:00:02]}  Ke7 {[%clk 0:00:28]} 42. Bh3 {[%clk 0:00:03]}  g6 {[%clk 0:00:27]} 43. Kg5 {[%clk 0:00:03]}  Kf7 {[%clk 0:00:27]} 44. Kh6 {[%clk 0:00:03]}  Kf6 {[%clk 0:00:26]} 45. Ra8 {[%clk 0:00:03]}  Nf3 {[%clk 0:00:25]} 46. Rh8 {[%clk 0:00:02]}  Nd2 {[%clk 0:00:23]} 47. Rxh7 {[%clk 0:00:03]}  Rxh7+ {[%clk 0:00:23]} 48. Kxh7 {[%clk 0:00:03]}  Nxc4 {[%clk 0:00:24]} 49. g4 {[%clk 0:00:02]}  fxg4 {[%clk 0:00:23]} 50. Bxg4 {[%clk 0:00:02]}  b5 {[%clk 0:00:22]} 51. Be2 {[%clk 0:00:03]}  Ne5 {[%clk 0:00:21]} 52. Bd1 {[%clk 0:00:03]}  b4 {[%clk 0:00:21]} 53. f4 {[%clk 0:00:02]}  Nd3 {[%clk 0:00:21]} 54. Bc2 {[%clk 0:00:02]}  Nxf4 {[%clk 0:00:20]} 55. Kh6 {[%clk 0:00:02]}  c5 {[%clk 0:00:20]} 56. Bb3 {[%clk 0:00:02]}  Ng2 {[%clk 0:00:17]} 57. h5 {[%clk 0:00:01]}  gxh5 {[%clk 0:00:18]} 58. Kxh5 {[%clk 0:00:02]}  Ke5 {[%clk 0:00:18]} 59. Kg4 {[%clk 0:00:02]}  Kd4 {[%clk 0:00:18]} 60. Kf3 {[%clk 0:00:03]}  Ne1+ {[%clk 0:00:17]} 61. Ke2 {[%clk 0:00:03]}  Nd3 {[%clk 0:00:18]} 62. Kd2 {[%clk 0:00:04]}  Ne5 {[%clk 0:00:17]} 63. Kc2 {[%clk 0:00:03]}  c4 {[%clk 0:00:17]} 64. Ba4 {[%clk 0:00:03]}  Nf3 {[%clk 0:00:16]} 65. Kb2 {[%clk 0:00:04]}  c3+ {[%clk 0:00:15]} 66. Kc1 {[%clk 0:00:04]}  Kc5 {[%clk 0:00:15]} 67. Bb3 {[%clk 0:00:04]}  Nd4 {[%clk 0:00:15]} 68. Ba4 {[%clk 0:00:04]}  b3 {[%clk 0:00:16]} 69. Kb1 {[%clk 0:00:02]}  Kb4 {[%clk 0:00:16]} 70. Bd7 {[%clk 0:00:02]}  Ka3 {[%clk 0:00:16]} 71. Be8 {[%clk 0:00:01]}  c2+ {[%clk 0:00:16]} 72. Kc1 {[%clk 0:00:01]}  Ne2+ {[%clk 0:00:16]} 73. Kd2 {[%clk 0:00:02]}  c1=Q+ {[%clk 0:00:16]} 74. Kxe2 {[%clk 0:00:03]}  b2 {[%clk 0:00:16]} 0-1


[Site "https://www.chess.com"]

[Event "Titled Tuesday Blitz May 2 Late 2023"]
[White "Adan Bermudez, Sergio"]
[Black "Skvortsov, Andrei"]
[WhiteFideId "2292726"]
[BlackFideId "24108600"]
[WhiteElo "2292"]
[BlackElo "2259"]
[Result "1-0"]
[Round "09"]
[TimeControl "180+2"]
[Date "2023.05.02"]
[WhiteClock "0:00:12"]
[BlackClock "0:00:13"]

1. c4 {[%clk 0:02:56]}  c6 {[%clk 0:02:54]} 2. Nc3 {[%clk 0:02:56]}  d5 {[%clk 0:02:52]} 3. e3 {[%clk 0:02:57]}  Nf6 {[%clk 0:02:51]} 4. Nf3 {[%clk 0:02:57]}  Bg4 {[%clk 0:02:48]} 5. Qb3 {[%clk 0:02:56]}  Qb6 {[%clk 0:02:33]} 6. Ne5 {[%clk 0:02:56]}  Be6 {[%clk 0:02:29]} 7. d4 {[%clk 0:02:56]}  Nbd7 {[%clk 0:02:28]} 8. Nxd7 {[%clk 0:02:49]}  Bxd7 {[%clk 0:02:21]} 9. cxd5 {[%clk 0:02:38]}  Qxb3 {[%clk 0:02:17]} 10. axb3 {[%clk 0:02:39]}  Nxd5 {[%clk 0:02:16]} 11. Bc4 {[%clk 0:02:28]}  e6 {[%clk 0:02:14]} 12. O-O {[%clk 0:02:23]}  Bb4 {[%clk 0:02:12]} 13. Bd2 {[%clk 0:02:22]}  Nxc3 {[%clk 0:02:11]} 14. bxc3 {[%clk 0:02:20]}  Bd6 {[%clk 0:02:12]} 15. b4 {[%clk 0:02:19]}  e5 {[%clk 0:02:12]} 16. Ra5 {[%clk 0:02:13]}  Bc7 {[%clk 0:02:11]} 17. Ra2 {[%clk 0:02:08]}  a6 {[%clk 0:02:06]} 18. dxe5 {[%clk 0:02:07]}  Bxe5 {[%clk 0:02:05]} 19. f4 {[%clk 0:02:07]}  Bc7 {[%clk 0:02:04]} 20. e4 {[%clk 0:02:05]}  Be6 {[%clk 0:02:03]} 21. Bxe6 {[%clk 0:02:04]}  fxe6 {[%clk 0:02:04]} 22. Be3 {[%clk 0:02:02]}  Rd8 {[%clk 0:02:05]} 23. Rd2 {[%clk 0:01:52]}  Rxd2 {[%clk 0:01:58]} 24. Bxd2 {[%clk 0:01:53]}  Bb6+ {[%clk 0:01:57]} 25. Kh1 {[%clk 0:01:52]}  Ke7 {[%clk 0:01:58]} 26. f5 {[%clk 0:01:42]}  h6 {[%clk 0:01:58]} 27. Bf4 {[%clk 0:01:38]}  Rd8 {[%clk 0:01:56]} 28. Be5 {[%clk 0:01:38]}  exf5 {[%clk 0:01:45]} 29. Bxg7 {[%clk 0:01:37]}  Rg8 {[%clk 0:01:43]} 30. exf5 {[%clk 0:01:37]}  h5 {[%clk 0:01:38]} 31. Be5 {[%clk 0:01:27]}  Rd8 {[%clk 0:01:31]} 32. f6+ {[%clk 0:01:22]}  Ke6 {[%clk 0:01:24]} 33. Bg3 {[%clk 0:01:07]}  Rf8 {[%clk 0:01:22]} 34. Bh4 {[%clk 0:01:05]}  Bd8 {[%clk 0:01:22]} 35. Re1+ {[%clk 0:01:01]}  Kf5 {[%clk 0:01:17]} 36. c4 {[%clk 0:00:56]}  b6 {[%clk 0:01:14]} 37. Rf1+ {[%clk 0:00:51]}  Kg6 {[%clk 0:01:14]} 38. Ra1 {[%clk 0:00:42]}  Bxf6 {[%clk 0:01:13]} 39. Bxf6 {[%clk 0:00:42]}  Rxf6 {[%clk 0:00:54]} 40. h3 {[%clk 0:00:42]}  c5 {[%clk 0:00:45]} 41. Rxa6 {[%clk 0:00:27]}  cxb4 {[%clk 0:00:44]} 42. Ra4 {[%clk 0:00:28]}  b3 {[%clk 0:00:34]} 43. Rb4 {[%clk 0:00:28]}  Rc6 {[%clk 0:00:30]} 44. Rxb3 {[%clk 0:00:28]}  Rxc4 {[%clk 0:00:30]} 45. Rxb6+ {[%clk 0:00:28]}  Kg5 {[%clk 0:00:31]} 46. Kh2 {[%clk 0:00:28]}  h4 {[%clk 0:00:31]} 47. Rd6 {[%clk 0:00:28]}  Rb4 {[%clk 0:00:31]} 48. Rd5+ {[%clk 0:00:28]}  Kg6 {[%clk 0:00:31]} 49. Re5 {[%clk 0:00:29]}  Kh6 {[%clk 0:00:30]} 50. Kg1 {[%clk 0:00:29]}  Rf4 {[%clk 0:00:29]} 51. Re3 {[%clk 0:00:28]}  Kg6 {[%clk 0:00:29]} 52. Rf3 {[%clk 0:00:28]}  Ra4 {[%clk 0:00:29]} 53. Kf2 {[%clk 0:00:27]}  Kg5 {[%clk 0:00:30]} 54. Re3 {[%clk 0:00:26]}  Rf4+ {[%clk 0:00:29]} 55. Ke2 {[%clk 0:00:27]}  Ra4 {[%clk 0:00:29]} 56. Re5+ {[%clk 0:00:26]}  Kg6 {[%clk 0:00:29]} 57. Kf2 {[%clk 0:00:25]}  Kf6 {[%clk 0:00:22]} 58. Re3 {[%clk 0:00:25]}  Kg5 {[%clk 0:00:22]} 59. Rd3 {[%clk 0:00:23]}  Rf4+ {[%clk 0:00:20]} 60. Ke3 {[%clk 0:00:23]}  Ra4 {[%clk 0:00:20]} 61. Rd5+ {[%clk 0:00:23]}  Kg6 {[%clk 0:00:20]} 62. Rd4 {[%clk 0:00:23]}  Rxd4 {[%clk 0:00:09]} 63. Kxd4 {[%clk 0:00:23]}  Kf5 {[%clk 0:00:09]} 64. Kd5 {[%clk 0:00:09]}  Kf4 {[%clk 0:00:09]} 65. Ke6 {[%clk 0:00:09]}  Kg3 {[%clk 0:00:08]} 66. Kf5 {[%clk 0:00:09]}  Kxg2 {[%clk 0:00:08]} 67. Kg4 {[%clk 0:00:10]}  Kf2 {[%clk 0:00:09]} 68. Kxh4 {[%clk 0:00:10]}  Ke3 {[%clk 0:00:10]} 69. Kg5 {[%clk 0:00:11]}  Ke4 {[%clk 0:00:10]} 70. h4 {[%clk 0:00:11]}  Ke5 {[%clk 0:00:11]} 71. h5 {[%clk 0:00:12]}  Ke6 {[%clk 0:00:12]} 72. Kg6 {[%clk 0:00:12]}  Ke7 {[%clk 0:00:13]} 73. Kg7 {[%clk 0:00:12]} 1-0


[Site "https://www.chess.com"]

[Event "Titled Tuesday Blitz May 2 Late 2023"]
[White "Karas, Marek"]
[Black "Aldokhin, Ivan"]
[WhiteFideId "14928558"]
[BlackFideId "24115720"]
[WhiteElo "2233"]
[BlackElo "2322"]
[Result "0-1"]
[Round "09"]
[TimeControl "180+2"]
[Date "2023.05.02"]
[WhiteClock "0:00:11"]
[BlackClock "0:00:39"]

1. Nc3 {[%clk 0:02:57]}  d5 {[%clk 0:02:59]} 2. d4 {[%clk 0:02:57]}  Nf6 {[%clk 0:02:58]} 3. Bf4 {[%clk 0:02:56]}  a6 {[%clk 0:02:51]} 4. e3 {[%clk 0:02:54]}  c5 {[%clk 0:02:50]} 5. Nf3 {[%clk 0:02:49]}  Nc6 {[%clk 0:02:49]} 6. dxc5 {[%clk 0:02:40]}  e6 {[%clk 0:02:47]} 7. Bd3 {[%clk 0:02:40]}  Bxc5 {[%clk 0:02:47]} 8. e4 {[%clk 0:02:39]}  d4 {[%clk 0:02:26]} 9. Ne2 {[%clk 0:02:35]}  Qe7 {[%clk 0:02:26]} 10. O-O {[%clk 0:02:20]}  e5 {[%clk 0:02:26]} 11. Bg5 {[%clk 0:02:18]}  h6 {[%clk 0:02:26]} 12. Bd2 {[%clk 0:02:15]}  O-O {[%clk 0:02:24]} 13. Ng3 {[%clk 0:02:15]}  Re8 {[%clk 0:02:13]} 14. Qe2 {[%clk 0:02:08]}  Nb4 {[%clk 0:02:10]} 15. a3 {[%clk 0:02:03]}  Nxd3 {[%clk 0:02:10]} 16. cxd3 {[%clk 0:02:04]}  Bd6 {[%clk 0:01:59]} 17. Nh4 {[%clk 0:01:57]}  Bg4 {[%clk 0:01:54]} 18. Nhf5 {[%clk 0:01:44]}  Bxe2 {[%clk 0:01:45]} 19. Nxe7+ {[%clk 0:01:45]}  Rxe7 {[%clk 0:01:44]} 20. Nxe2 {[%clk 0:01:46]}  Rc8 {[%clk 0:01:44]} 21. Rac1 {[%clk 0:01:44]}  Rec7 {[%clk 0:01:45]} 22. Rxc7 {[%clk 0:01:44]}  Rxc7 {[%clk 0:01:46]} 23. Rc1 {[%clk 0:01:44]}  Nd7 {[%clk 0:01:44]} 24. Rxc7 {[%clk 0:01:43]}  Bxc7 {[%clk 0:01:45]} 25. Bb4 {[%clk 0:01:41]}  a5 {[%clk 0:01:40]} 26. Bd2 {[%clk 0:01:37]}  Nc5 {[%clk 0:01:38]} 27. Nc1 {[%clk 0:01:38]}  Na4 {[%clk 0:01:25]} 28. b4 {[%clk 0:01:27]}  Nc3 {[%clk 0:01:17]} 29. Kf1 {[%clk 0:01:16]}  Nb1 {[%clk 0:01:13]} 30. Ke2 {[%clk 0:01:07]}  a4 {[%clk 0:01:13]} 31. g3 {[%clk 0:00:50]}  Nxa3 {[%clk 0:01:12]} 32. f4 {[%clk 0:00:47]}  f6 {[%clk 0:01:00]} 33. f5 {[%clk 0:00:48]}  Bd6 {[%clk 0:01:00]} 34. Na2 {[%clk 0:00:48]}  Nb5 {[%clk 0:00:47]} 35. Kd1 {[%clk 0:00:47]}  h5 {[%clk 0:00:44]} 36. h3 {[%clk 0:00:47]}  Kh7 {[%clk 0:00:42]} 37. g4 {[%clk 0:00:46]}  hxg4 {[%clk 0:00:40]} 38. hxg4 {[%clk 0:00:47]}  g6 {[%clk 0:00:41]} 39. Ke2 {[%clk 0:00:37]}  gxf5 {[%clk 0:00:41]} 40. gxf5 {[%clk 0:00:36]}  Bf8 {[%clk 0:00:41]} 41. Kd1 {[%clk 0:00:19]}  Bh6 {[%clk 0:00:41]} 42. Be1 {[%clk 0:00:19]}  Bg5 {[%clk 0:00:40]} 43. Ke2 {[%clk 0:00:17]}  Kh6 {[%clk 0:00:40]} 44. Kf3 {[%clk 0:00:17]}  Kh5 {[%clk 0:00:41]} 45. Ke2 {[%clk 0:00:15]}  Kg4 {[%clk 0:00:40]} 46. Nc1 {[%clk 0:00:11]}  Bxc1 {[%clk 0:00:39]} 0-1


[Site "https://www.chess.com"]